[Event "3rd Perez Open 2024"]
[Site "Santa Fe"]
[Date "2024.02.25"]
[Round "6.3"]
[White "Villca, Julian"]
[Black "Alvarez, Leandro"]
[Result "1/2-1/2"]
[ECO "E61"]
[WhiteElo "2411"]
[BlackElo "2103"]
[Annotator "TA"]
[PlyCount "100"]
[EventDate "2024.02.18"]
[EventType "swiss"]
[EventCountry "ARG"]
[SourceTitle "playchess.com"]
[Source "ChessBase"]
[SourceQuality "1"]
[TimeControl "5400+30"]

{[%evp 16,100,18,0,25,2,30,-9,-7,-8,-6,-11,-17,-50,-45,-118,-114,-113,-102,-110,-69,-73,-87,-195,0,0,0,0,0,0,188,195,229,-37,0,-113,-108,-104,-123,-113,-111,-154,-182,-159,-166,-198,-96,-112,-108,-112,-112,-112,-111,-104,-90,-86,0,-163,-119,-134,0,0,0,-22,0,0,0,0,8,8,11,8,8,8,8,8,8,8,8,8,8,8,8,8,8,8,8]} 1. c4 {[%emt 0:00:03]} Nf6 {[%emt 0:41:47]} 2. g3 {[%emt 0:00:08]} g6 {[%emt 0:00:14]} 3. Bg2 {[%emt 0:00:06]} Bg7 {[%emt 0:00:01]} 4. Nc3 {[%emt 0:00:02]} d6 {[%emt 0:00:06]} 5. d4 {[%emt 0:00:05]} O-O {[%emt 0:00:07]} 6. e3 {[%emt 0:00:08][%cal Be2e3,Be3e4][%mdl 32]} Nbd7 {[%emt 0:00:04]} 7. Nge2 {[%emt 0:00:05]} e5 {[%emt 0:00:05]} 8. O-O {[%emt 0:00:05]} Re8 {[%emt 0:00:41]} 9. Qc2 {[%emt 0:00:07]} Qe7 {[%emt 0:02:09]} 10. dxe5 {[%emt 0:11:12]} dxe5 {[%emt 0:03:53]} 11. e4 {[%emt 0:03:42]} c6 {[%emt 0:00:08]} 12. b3 {[%emt 0:00:06]} Nf8 {[%emt 0:02:42]} 13. h3 {[%emt 0:01:26]} h5 {[%emt 0:08:57]} 14. f4 {[%emt 0:30:53]} exf4 {[%emt 0:05:58]} 15. gxf4 {[%emt 0:00:11] [#]} (15. Nxf4 $15 h4 16. g4) 15... Nxe4 $1 $17 {[%emt 0:11:07][%mdl 512]} 16. Bxe4 {[%emt 0:01:36]} Bxh3 {[%emt 0:00:45]} 17. Rf2 {[%emt 0:09:29]} f5 {[%emt 0:04:14]} 18. Bg2 {[%emt 0:01:30]} Bg4 {[%emt 0:00:23]} 19. Bd2 {[%emt 0:01:37]} (19. Bb2 $17) 19... Bxe2 $2 {[%emt 0:03:17]} (19... Ne6 $19 {Threatens to win with ...Nd4.} 20. Re1 Qf6) 20. Rxe2 $11 {[%emt 0:14:42]} Bd4+ {[%emt 0:07:23]} 21. Kf1 {[%emt 0:00:17]} Qh4 {[%emt 0:00:24]} 22. Rae1 {[%emt 0:00:30]} Ne6 $2 {[%emt 0:03:01]} 23. Nd1 $1 $18 {[%emt 0:02:42]} (23. Rxe6 $2 Qf2#) 23... Kf7 {[%emt 0:01:02] [#]} 24. Qd3 $2 {[%emt 0:01:28]} (24. c5 $1 $18 Rad8 25. Qc4) 24... Qh2 $40 {[%emt 0:01:45][%mdl 128] Black is up to no good.} 25. Qxd4 {[%emt 0:03:33]} Nxd4 $17 {[%emt 0:00:50]} 26. Bd5+ {[%emt 0:00:03]} cxd5 {[%emt 0:00:13]} 27. Rxh2 {[%emt 0:00:03]} Nf3 $1 {[%emt 0:00:44][%csl LRe1,LRh2]} 28. Rf2 {[%emt 0:01:05]} Nxe1 {[%emt 0:00:10]} 29. Bxe1 {[%emt 0:00:01]} dxc4 {[%emt 0:00:09]} 30. bxc4 {[%emt 0:00:02]} Re4 {[%emt 0:00:39]} (30... Rad8 $19 31. Nc3 Rd4) 31. Nb2 {[%emt 0:00:20]} Rd8 {[%emt 0:02:01]} 32. Bd2 {[%emt 0:05:36] Prevents Re3} b6 {[%emt 0:00:36]} 33. Kg2 {[%emt 0:00:50]} Rd7 {[%emt 0:00:47]} 34. Kf3 {[%emt 0:00:42]} Kf6 {[%emt 0:00:27]} 35. Bc3+ {[%emt 0:00:47]} Kf7 {[%emt 0:00:01]} (35... Ke7 $17) 36. a4 $2 {[%emt 0:01:27]} (36. Bd2 $1 $11 {and White is okay.}) 36... a5 {[%emt 0:00:04]} 37. Rc2 {[%emt 0:00:52][%cal Oc4c5] [#]} g5 {[%emt 0:01:18]} 38. fxg5 $11 {[%emt 0:00:21] The position is equal.} Kg6 {[%emt 0:00:20]} 39. Bd2 {[%emt 0:02:04]} h4 {[%emt 0:00:43]} 40. Bf4 {[%emt 0:00:36]} Rdd4 {[%emt 0:00:22]} 41. Be3 {[%emt 0:00:08]} Rxe3+ {[%emt 0:00:51]} 42. Kxe3 {[%emt 0:00:02][%mdl 4096] Endgame. KRN-KR} Re4+ {[%emt 0:00:00]} 43. Kf3 {[%emt 0:00:33]} Kxg5 {[%emt 0:00:02]} 44. Nd3 {[%emt 0:02:11]} Rg4 {[%emt 0:01:23]} 45. Rg2 {[%emt 0:07:32]} h3 {[%emt 0:00:01]} ({But not} 45... b5 $2 46. axb5 (46. cxb5 Kf6 $18) 46... a4 47. b6 $18) 46. Rxg4+ {[%emt 0:00:53]} fxg4+ {[%emt 0:00:01]} 47. Kg3 {[%emt 0:00:14]} Kf5 {[%emt 0:00:15]} 48. c5 {[%emt 0:01:31]} bxc5 {[%emt 0:00:01]} 49. Nxc5 {[%emt 0:00:08]} Ke5 {[%emt 0:00:25]} 50. Nb3 {[%emt 0:00:14]} Ke6 {[%emt 0:02:54] White used his chance.   Weighted Error Value: White=0.31/Black=0.30.  Loses game:     	White=1     	Black=1      Missed win:     	White=1     	Black=1      Mistake:       	White=3     	Black=3      Inaccurate:     	White=3     	Black=2      OK:         	White=15    	Black=14     Best:        	White=3     	Black=3      Strong:       	White=1     	---        Brilliant:      	---       	Black=1} 1/2-1/2

[Event "3rd Perez Open 2024"]
[Site "Santa Fe"]
[Date "2024.02.25"]
[Round "6.4"]
[White "Llanos, Guillermo"]
[Black "Ibarra, Juan Martin"]
[Result "1-0"]
[ECO "D45"]
[WhiteElo "2289"]
[BlackElo "2281"]
[Annotator "TA"]
[PlyCount "141"]
[EventDate "2024.02.18"]
[EventType "swiss"]
[EventCountry "ARG"]
[SourceTitle "playchess.com"]
[Source "ChessBase"]
[SourceQuality "1"]
[TimeControl "5400+30"]

{[%evp 19,141,-22,0,-11,20,16,27,26,85,85,150,142,147,154,144,138,254,250,245,232,278,204,208,208,209,202,202,209,202,190,191,193,194,193,191,191,212,202,210,180,195,188,220,219,200,171,164,175,176,138,231,230,231,196,230,210,265,263,316,236,272,270,267,271,271,284,294,294,297,297,298,298,350,353,331,298,345,333,421,486,464,495,473,318,494,462,454,325,269,0,446,252,299,298,663,647,578,452,439,437,29942,29943,29939,12841,29953,29955,29960,29960,29961,29961,29959,29958,29967,29969,29970,29972,29978,29973,29972,29969,29970,29970,8020,6635]} 1. d4 {[%emt 0:03:24]} d5 {[%emt 0:00:21]} 2. c4 {[%emt 0:00:14]} c6 {[%emt 0:00:12]} 3. Nf3 {[%emt 0:00:07]} Nf6 {[%emt 0:00:05]} 4. Nc3 {[%emt 0:00:06]} e6 {[%emt 0:00:21]} 5. Qc2 {[%emt 0:00:05]} Nbd7 {[%emt 0:10:30]} 6. e4 {[%emt 0:00:06]} dxe4 {[%emt 0:00:30]} 7. Nxe4 {[%emt 0:00:10]} Nxe4 {[%emt 0:02:43]} 8. Qxe4 {[%emt 0:00:09]} Bb4+ {[%emt 0:00:11]} 9. Bd2 {[%emt 0:00:08]} Bxd2+ {[%emt 0:01:21]} 10. Nxd2 {[%emt 0:00:05]} O-O {[%emt 0:04:49][%cal Oe6e5]} 11. Be2 {[%emt 0:08:06]} e5 {[%emt 0:07:25]} 12. dxe5 {[%emt 0:06:32]} Qa5 {[%emt 0:10:32]} 13. f4 {[%emt 0:11:42][%cal Bf2f4,Bf4f5,Bf5e6][%mdl 32] White has an edge.} f6 {[%emt 0:01:08]} (13... Nc5 $11 14. Qe3 Rd8) 14. c5 $16 {[%emt 0:07:18] aiming for b4.} Nxc5 {[%emt 0:05:52]} ({Better is} 14... fxe5 15. b4 Qc7) 15. Qc4+ $1 {[%emt 0:00:58]} Ne6 {[%emt 0:06:42]} ({Don't blunder} 15... Be6 $2 16. b4 $18) 16. f5 {[%emt 0:09:32]} Rd8 {[%emt 0:00:17] [#]} 17. Rd1 {[%emt 0:00:20]} Rd4 {[%emt 0:01:01] [#]} (17... b5 $16 18. Qb3 (18. Qxc6 Nd4 $15) 18... Rd5) 18. Qc3 $1 $18 {[%emt 0:08:09]} Qxe5 {[%emt 0:19:12]} ({But not} 18... Qxc3 19. bxc3 Rf4 20. fxe6 $18) 19. fxe6 {[%emt 0:00:07]} c5 {[%emt 0:00:22]} 20. Nb3 {[%emt 0:09:16]} Rxd1+ {[%emt 0:00:24]} 21. Kxd1 {[%emt 0:00:04][%cal Be1d1,Bd1c2,Bc2d2][%mdl 32]} Qxc3 {[%emt 0:02:54]} 22. bxc3 {[%emt 0:00:03]} Bxe6 {[%emt 0:00:04]} 23. Nxc5 {[%emt 0:01:22]} Bxa2 {[%emt 0:00:06]} 24. Kc2 {[%emt 0:00:17][%cal Oe2f3] Black must now prevent Bf3!} Bd5 {[%emt 0:01:57]} 25. Rg1 {[%emt 0:03:37]} Re8 {[%emt 0:05:04]} 26. Bd3 {[%emt 0:00:36]} Re5 {[%emt 0:00:49]} 27. g3 {[%emt 0:02:17]} Rh5 {[%emt 0:11:53]} 28. h4 {[%emt 0:00:11]} Re5 {[%emt 0:00:15]} 29. Kd2 {[%emt 0:00:52]} b6 {[%emt 0:00:59]} 30. Na6 {[%emt 0:00:37]} Bb7 {[%emt 0:02:45]} 31. Nb4 {[%emt 0:03:45]} g5 {[%emt 0:01:11]} 32. hxg5 {[%emt 0:01:14]} Rxg5 {[%emt 0:00:07]} 33. Bc4+ {[%emt 0:04:38]} Kf8 {[%emt 0:00:23]} 34. Nd3 {[%emt 0:00:14]} h5 {[%emt 0:01:56]} (34... b5 $16 {might work better.}) 35. Nf4 {[%emt 0:00:08] Ne6+ would now be deadly.} Ke7 {[%emt 0:00:05]} 36. Be2 {[%emt 0:03:18]} Ra5 {[%emt 0:02:25]} 37. Bxh5 {[%emt 0:00:23]} Ra2+ {[%emt 0:00:15]} 38. Ke3 {[%emt 0:00:27]} Ra3 {[%emt 0:00:14]} 39. Rc1 {[%emt 0:04:18]} b5 {[%emt 0:01:27]} 40. Kd4 {[%emt 0:00:59]} Kd6 {[%emt 0:00:16]} 41. Rb1 {[%emt 0:00:50]} Bc6 {[%emt 0:00:29]} 42. Be2 {[%emt 0:00:40]} a6 {[%emt 0:00:18]} 43. Bd3 {[%emt 0:00:57]} Ra4+ {[%emt 0:00:13]} 44. Ke3 {[%emt 0:01:47]} Ra3 {[%emt 0:00:02]} 45. Ne2 {[%emt 0:00:43]} Ra2 {[%emt 0:02:16]} 46. Rf1 {[%emt 0:00:14]} Ke7 {[%emt 0:00:03]} 47. Rf5 {[%emt 0:01:57]} Rb2 {[%emt 0:00:10]} 48. Nd4 {[%emt 0:02:22]} Bd7 {[%emt 0:00:01]} 49. Rf2 {[%emt 0:00:13]} Rxf2 {[%emt 0:00:14]} 50. Kxf2 {[%emt 0:00:03]} Kd6 {[%emt 0:00:09]} 51. Ke3 {[%emt 0:00:10]} Kc5 {[%emt 0:01:10]} (51... Ke5 $142 52. Kf3 Be8) 52. Nb3+ {[%emt 0:00:08]} Kd5 {[%emt 0:00:45]} 53. Kd2 {[%emt 0:02:08]} Bh3 {[%emt 0:01:18]} 54. Ke3 $2 {[%emt 0:01:19]} (54. Kc2) 54... Bd7 $1 {[%emt 0:00:06]} 55. Bg6 {[%emt 0:00:19]} (55. Kf4 $142) 55... Kc4 {[%emt 0:00:49]} 56. Nd2+ {[%emt 0:00:03]} Kxc3 $2 {[%emt 0:00:42]} (56... Kd5 57. Ne4 Ke5) 57. Ne4+ {[%emt 0:00:03]} Kb2 {[%emt 0:00:21]} 58. Nxf6 {[%emt 0:00:18]} Be6 {[%emt 0:00:05] And now ...a5 would win.} 59. Bd3 {[%emt 0:01:07] Threatens to win with Kd4.} b4 {[%emt 0:01:14]} (59... Kb3 $18 60. Ne4 Kb4) 60. Bxa6 {[%emt 0:00:03]} Kc1 {[%emt 0:00:01]} 61. Bd3 {[%emt 0:02:09]} (61. Ne4 $142 Kc2 62. Kd4 Bd7 63. Bd3+ Kb2 64. Kc4 Ka3 65. Nd6 b3 66. Kc3) 61... b3 {[%emt 0:00:04]} 62. Ne4 {[%emt 0:01:09]} b2 {[%emt 0:00:36]} 63. Nc3 {[%emt 0:00:12]} Bg4 {[%emt 0:00:22]} 64. Be4 {[%emt 0:00:53]} Be6 {[%emt 0:00:55]} 65. Ke2 {[%emt 0:00:26]} Bb3 {[%emt 0:00:52]} 66. g4 {[%emt 0:02:42][%cal Bg3g4,Bg4g5][%mdl 32]} Bc2 {[%emt 0:00:29]} 67. Ke3 {[%emt 0:00:04]} Bb3 {[%emt 0:00:41]} 68. g5 {[%emt 0:00:07]} Bf7 {[%emt 0:00:10]} 69. Ke2 {[%emt 0:00:18]} Bc4+ {[%emt 0:00:50]} 70. Ke1 {[%emt 0:00:13]} b1=Q {[%emt 0:00:30]} 71. Nxb1 {[%emt 0:00:07] Weighted Error Value: White=0.22 (precise) /Black=0.40.  Mistake:       	White=2     	Black=7      Inaccurate:     	White=1     	Black=1      OK:         	White=25    	Black=15     Best:        	White=3     	Black=2      Strong:       	White=2     	Black=1} 1-0

[Event "3rd Perez Open 2024"]
[Site "Santa Fe"]
[Date "2024.02.25"]
[Round "6.5"]
[White "Mavrich, Demian"]
[Black "Villareal, Agustin"]
[Result "0-1"]
[ECO "C45"]
[WhiteElo "2251"]
[BlackElo "1674"]
[Annotator "TA"]
[PlyCount "70"]
[EventDate "2024.02.18"]
[EventType "swiss"]
[EventCountry "ARG"]
[SourceTitle "playchess.com"]
[Source "ChessBase"]
[SourceQuality "1"]
[TimeControl "5400+30"]

{[%evp 14,69,-22,-17,-7,-25,0,-41,5,-120,-88,-89,-85,-210,-214,-303,-283,-533,-374,-377,-372,-365,-362,-378,-372,-435,-433,-426,-426,-431,-415,-501,-509,-509,-501,-634,-625,-593,-369,-347,-319,-508,-379,-441,-457,-1413,-1382,-1284,-1240,-29992,135,-29993,-29994,-29994,-29995,-29995,-29996,-29999]} 1. e4 {[%emt 0:00:06]} e5 {[%emt 0:14:38]} 2. Nf3 {[%emt 0:00:13]} Nc6 {[%emt 0:00:02]} 3. d4 {[%emt 0:00:10]} exd4 {[%emt 0:01:25]} 4. Nxd4 {[%emt 0:00:08]} Nf6 {[%emt 0:00:17]} 5. Nxc6 {[%emt 0:00:23]} bxc6 {[%emt 0:00:07]} 6. e5 {[%emt 0:00:13]} Qe7 {[%emt 0:00:29]} 7. Qe2 {[%emt 0:00:10]} Nd5 {[%emt 0:00:01]} 8. h4 {[%emt 0:00:18]} a5 {[%emt 0:00:11]} 9. c4 {[%emt 0:05:21]} Ba6 {[%emt 0:01:19]} 10. Qe4 {[%emt 0:10:55]} Nb4 {[%emt 0:02:59]} (10... Nb6 $15 {deserves consideration.}) 11. Na3 {[%emt 0:30:57]} (11. Nc3 $11 Qe6 12. Rb1) 11... f6 {[%emt 0:14:16]} 12. Bf4 {[%emt 0:11:50]} fxe5 {[%emt 0:02:23]} 13. Bg5 {[%emt 0:06:20] [#]} (13. Bg3 $17 {might work better.}) 13... Qe6 $1 $19 {[%emt 0:00:27]} 14. g3 {[%emt 0:00:12]} (14. Nb5 {keeps fighting.} Bxb5 15. cxb5) 14... d5 {[%emt 0:05:08]} 15. Bh3 $2 {[%emt 0:00:12]} (15. Qe3) 15... dxe4 {[%emt 0:00:04]} 16. Bxe6 {[%emt 0:00:11]} Nd3+ {[%emt 0:00:08]} 17. Kd2 {[%emt 0:07:27]} Nxb2 {[%emt 0:01:00]} (17... Nxf2 18. Rhf1 Bb4+ 19. Kc2) 18. Nc2 {[%emt 0:03:58]} h6 {[%emt 0:02:19]} ({Don't take} 18... Bxc4 19. Bxc4 Nxc4+ 20. Ke2 $19) (18... Nxc4+ 19. Kc3 Nb6 20. Rad1) 19. Rab1 {[%emt 0:04:52]} Nxc4+ {[%emt 0:02:52]} ({Don't play} 19... Bxc4 20. Bg4 $19) 20. Kc3 {[%emt 0:01:53]} Nb6 {[%emt 0:00:40][%cal Bc4b6,Bb6a4,Ba4c5,Bc5d3][%mdl 32]} 21. Be3 {[%emt 0:01:56]} Na4+ {[%emt 0:06:48]} 22. Kd2 {[%emt 0:00:33]} Rd8+ {[%emt 0:00:35]} 23. Kc1 {[%emt 0:00:25]} Nc5 {[%emt 0:01:17] Inhibits Rb3.} 24. Bf5 {[%emt 0:03:04]} Nd3+ {[%emt 0:03:37]} 25. Kd2 {[%emt 0:00:09]} Kf7 {[%emt 0:00:52] Wards off Bg6+} 26. Kc3 {[%emt 0:01:07]} Nc5 {[%emt 0:07:18]} 27. h5 {[%emt 0:00:34]} (27. Bxc5 {is a better defense.} Rd3+ (27... Bxc5 $2 28. Bxe4 Rhf8 29. f3 $19) 28. Kb2 Bxc5 29. Bxe4 Rb8+ 30. Ka1 Rxb1+ 31. Kxb1) 27... Bd3 {[%emt 0:09:22]} 28. Rbc1 {[%emt 0:02:44]} Na4+ {[%emt 0:02:41]} 29. Kb3 {[%emt 0:02:19]} (29. Kd2 $142) 29... Rb8+ {[%emt 0:07:11]} 30. Kxa4 {[%emt 0:00:10]} Rb2 {[%emt 0:00:02][%csl LRa2,LRc2] ( -> ...Bb5+)} 31. Na3 {[%emt 0:05:46]} Rb4+ {[%emt 0:00:21]} 32. Kxa5 {[%emt 0:00:05]} Bd6 {[%emt 0:00:02] Black mates.} 33. Bg6+ {[%emt 0:01:41]} Kf6 {[%emt 0:00:11]} 34. Bc5 {[%emt 0:01:08] [#]} Rb6 $1 {[%cal Rh8a8][%mdl 512]} 35. Be3 {[%emt 0:00:30]} (35. Nb5 Rxb5+) 35... Ra8# {[%emt 0:16:58] Weighted Error Value: White=0.83/Black=0.36.  Mistake:       	White=6     	Black=1      Inaccurate:     	White=1     	---        OK:         	White=5     	Black=10     Best:        	White=4     	Black=2      Strong:       	---       	Black=1} 0-1

[Event "3rd Perez Open 2024"]
[Site "Santa Fe"]
[Date "2024.02.25"]
[Round "6.6"]
[White "Acosta, Pablo Ismael"]
[Black "Amura, Claudia"]
[Result "1/2-1/2"]
[ECO "D60"]
[WhiteElo "2479"]
[BlackElo "2196"]
[Annotator "TA"]
[PlyCount "54"]
[EventDate "2024.02.18"]
[EventType "swiss"]
[EventCountry "ARG"]
[SourceTitle "playchess.com"]
[Source "ChessBase"]
[SourceQuality "1"]
[TimeControl "5400+30"]

{[%evp 20,54,0,6,10,14,9,2,6,5,16,7,13,11,21,11,12,10,18,20,19,11,20,20,10,0,14,0,0,0,16,11,20,0,0,0,0]} 1. d4 {[%emt 0:05:52]} d5 {[%emt 0:00:36]} 2. c4 {[%emt 0:00:10]} e6 {[%emt 0:00:05]} 3. Nc3 {[%emt 0:00:31]} Be7 {[%emt 0:00:29]} 4. Nf3 {[%emt 0:00:25]} Nf6 {[%emt 0:00:05]} 5. Bg5 {[%emt 0:00:40]} Nbd7 {[%emt 0:01:06]} 6. e3 {[%emt 0:00:34]} O-O {[%emt 0:00:29]} 7. cxd5 {[%emt 0:00:21]} Nxd5 {[%emt 0:01:10]} 8. Bxe7 {[%emt 0:00:29]} Qxe7 {[%emt 0:00:14]} 9. Rc1 {[%emt 0:00:16]} c6 {[%emt 0:03:52]} 10. Bc4 {[%emt 0:00:29]} Nxc3 {[%emt 0:00:21]} 11. Rxc3 {[%emt 0:00:16] The position is equal.} e5 {[%emt 0:00:04]} 12. O-O {[%emt 0:00:13]} exd4 {[%emt 0:02:12]} 13. Qxd4 {[%emt 0:01:25]} Nb6 {[%emt 0:06:44]} 14. Bb3 {[%emt 0:02:44]} Be6 {[%emt 0:01:50]} 15. Qe4 {[%emt 0:03:10]} Rfe8 {[%emt 0:00:34]} 16. Bxe6 {[%emt 0:00:36]} Qxe6 {[%emt 0:00:52]} 17. Qxe6 {[%emt 0:00:22]} Rxe6 {[%emt 0:01:00]} 18. Rd1 {[%emt 0:00:16]} Kf8 {[%emt 0:09:05]} 19. h4 {[%emt 0:01:49]} h5 {[%emt 0:02:30]} 20. Kf1 {[%emt 0:00:47]} g6 {[%emt 0:05:11]} 21. Ke2 {[%emt 0:00:52]} Ke7 {[%emt 0:03:44]} 22. Nd4 {[%emt 0:01:36]} Rd6 {[%emt 0:05:53]} 23. Nb3 {[%emt 0:00:22]} Na4 {[%emt 0:09:59]} 24. Rc2 {[%emt 0:00:15]} Rad8 {[%emt 0:00:05]} 25. Rxd6 {[%emt 0:00:20]} Kxd6 {[%emt 0:00:46]} 26. Na5 {[%emt 0:01:25]} Kc7 {[%emt 0:00:18]} 27. b3 {[%emt 0:00:20]} Nb6 $1 {[%emt 0:00:07] A rather calm draw.   Weighted Error Value: White=0.04 (flawless) /Black=0.05 (flawless) .  OK:         	White=6     	Black=4      Strong:       	---       	Black=1} 1/2-1/2

[Event "3rd Perez Open 2024"]
[Site "Santa Fe"]
[Date "2024.02.25"]
[Round "7.1"]
[White "Flores, Diego"]
[Black "Llanos, Guillermo"]
[Result "1/2-1/2"]
[ECO "A28"]
[WhiteElo "2526"]
[BlackElo "2289"]
[Annotator "TA"]
[PlyCount "24"]
[EventDate "2024.02.18"]
[EventType "swiss"]
[EventCountry "ARG"]
[SourceTitle "playchess.com"]
[Source "ChessBase"]
[SourceQuality "1"]
[TimeControl "5400+30"]

{[%evp 9,24,-16,12,6,9,7,30,28,36,22,6,4,8,4,7,8,10]} 1. c4 {[%emt 0:02:56]} e5 {[%emt 0:00:15][%cal Be7e5,Be5e4][%mdl 32]} 2. Nc3 {[%emt 0:01:10]} Nf6 {[%emt 0:01:19]} 3. Nf3 {[%emt 0:03:26]} Nc6 {[%emt 0:00:35][%cal Bb8c6,Bc6e5,Be5d3][%mdl 32]} 4. e3 {[%emt 0:01:54]} Bb4 {[%emt 0:01:37]} 5. Nd5 {[%emt 0:00:23]} Be7 {[%emt 0:00:19]} 6. a3 {[%emt 0:04:29]} e4 {[%emt 0:03:55]} 7. Ng1 {[%emt 0:00:16]} Nxd5 {[%emt 0:06:26]} 8. cxd5 {[%emt 0:00:06] White has an edge.} Ne5 {[%emt 0:00:02]} 9. d4 {[%emt 0:06:39]} exd3 {[%emt 0:08:25] The position is equal.} 10. Nf3 {[%emt 0:09:02]} d6 {[%emt 0:06:38]} 11. Bxd3 {[%emt 0:01:10]} Nxd3+ {[%emt 0:11:13]} 12. Qxd3 {[%emt 0:00:09]} Bf6 {[%emt 0:00:22] Weighted Error Value: White=0.02 (flawless) /Black=0.09 (flawless) .  OK:         	White=2     	Black=2      Best:        	---       	Black=1} 1/2-1/2

[Event "3rd Perez Open 2024"]
[Site "Santa Fe"]
[Date "2024.02.25"]
[Round "7.2"]
[White "Villareal, Agustin"]
[Black "Spata, German"]
[Result "1/2-1/2"]
[ECO "D35"]
[WhiteElo "1674"]
[BlackElo "2399"]
[Annotator "TA"]
[PlyCount "29"]
[EventDate "2024.02.18"]
[EventType "swiss"]
[EventCountry "ARG"]
[SourceTitle "playchess.com"]
[Source "ChessBase"]
[SourceQuality "1"]
[TimeControl "5400+30"]

{[%evp 18,29,0,0,0,0,4,-15,-17,-18,-14,-14,-10,-27]} 1. d4 {[%emt 0:00:05]} d5 {[%emt 0:00:00]} 2. Nf3 {[%emt 0:00:06]} Nf6 {[%emt 0:00:25]} 3. c4 {[%emt 0:00:09]} c6 {[%emt 0:00:29]} 4. Nc3 {[%emt 0:00:07]} e6 {[%emt 0:00:48]} 5. cxd5 {[%emt 0:00:25]} exd5 {[%emt 0:00:20]} 6. Bg5 {[%emt 0:00:07]} Be7 {[%emt 0:00:42]} 7. e3 {[%emt 0:00:06]} Bf5 {[%emt 0:00:46]} 8. Bd3 {[%emt 0:00:05]} Bxd3 {[%emt 0:00:27]} 9. Bxf6 {[%emt 0:00:02]} Bxf6 {[%emt 0:00:41]} 10. Qxd3 {[%emt 0:00:05] The position is equal.} a5 {[%emt 0:00:28]} 11. O-O {[%emt 0:00:35]} O-O {[%emt 0:00:58]} 12. Qc2 {[%emt 0:00:46]} Nd7 {[%emt 0:00:29]} 13. Rab1 {[%emt 0:01:02]} Re8 {[%emt 0:01:06]} 14. Rfc1 {[%emt 0:00:32]} Nb6 {[%emt 0:03:40]} 15. Na4 {[%emt 0:00:07] A rather calm draw.   Weighted Error Value: White=0.05 (flawless) /Black=0.02 (flawless) .  OK:         	---       	Black=2} 1/2-1/2

[Event "3rd Perez Open 2024"]
[Site "Santa Fe"]
[Date "2024.02.25"]
[Round "7.3"]
[White "Asprelli, Gaspar"]
[Black "Villca, Julian"]
[Result "1/2-1/2"]
[ECO "B12"]
[WhiteElo "2226"]
[BlackElo "2411"]
[Annotator "TA"]
[PlyCount "61"]
[EventDate "2024.02.18"]
[EventType "swiss"]
[EventCountry "ARG"]
[SourceTitle "playchess.com"]
[Source "ChessBase"]
[SourceQuality "1"]
[TimeControl "5400+30"]

{[%evp 9,61,16,37,2,22,25,23,33,23,11,48,41,58,54,60,68,67,66,60,69,57,59,87,39,43,35,41,33,33,38,29,34,41,33,66,36,53,60,54,0,0,-74,0,-35,0,0,33,0,0,0,23,0,0,0]} 1. e4 {[%emt 0:00:03][%cal Be2e4,Be4e5][%mdl 32]} c6 {[%emt 0:00:27]} 2. d4 {[%emt 0:00:33]} d5 {[%emt 0:00:04]} 3. e5 {[%emt 0:00:06]} Bf5 {[%emt 0:00:07]} 4. c4 {[%emt 0:00:10]} e6 {[%emt 0:01:26]} 5. Nc3 {[%emt 0:00:09]} h6 {[%emt 0:04:31]} 6. a3 {[%emt 0:00:08]} dxc4 {[%emt 0:00:54]} 7. Bxc4 {[%emt 0:00:07]} Nd7 {[%emt 0:00:04]} 8. Nge2 {[%emt 0:00:12] White has an edge.} Ne7 {[%emt 0:00:55]} 9. O-O {[%emt 0:00:22]} a5 {[%emt 0:23:09]} 10. Ng3 {[%emt 0:01:58]} Bg6 {[%emt 0:01:58]} 11. Nce4 {[%emt 0:07:21]} Nf5 {[%emt 0:02:34] Dodges Nd6+} 12. Nxf5 {[%emt 0:07:59]} Bxf5 {[%emt 0:00:22]} 13. Ng3 {[%emt 0:00:05] [#] Nxf5 would now be deadly. White is more active.} Bh7 {[%emt 0:00:31]} 14. f4 {[%emt 0:01:56]} Nb6 {[%emt 0:00:28]} 15. Ba2 {[%emt 0:00:03]} Qd7 {[%emt 0:00:18]} 16. Qf3 {[%emt 0:05:48]} (16. f5 $16) 16... Nd5 $14 {[%emt 0:06:19]} 17. f5 {[%emt 0:08:21]} exf5 {[%emt 0:00:27]} 18. Nxf5 {[%emt 0:00:35]} Bxf5 {[%emt 0:00:35]} 19. Qxf5 {[%emt 0:01:58]} Qxf5 {[%emt 0:02:56]} 20. Rxf5 {[%emt 0:00:39]} Be7 {[%emt 0:00:24]} 21. Bd2 {[%emt 0:10:42]} Rf8 {[%emt 0:00:31]} 22. Rc1 {[%emt 0:03:51]} Kd7 {[%emt 0:01:10]} 23. Rf3 {[%emt 0:09:53]} a4 {[%emt 0:05:12]} 24. Rcf1 {[%emt 0:01:21]} (24. Rg3 $14 Rg8 25. Rf1) 24... f6 $11 25. Bf4 {[%emt 0:28:10]} (25. Rg3 $11 {remains equal.} g5 (25... fxe5 26. Bxd5 Rxf1+ 27. Kxf1 $16) 26. Re1) 25... Ra5 {[%emt 0:29:27]} ({Better is} 25... Nxf4 $17 26. Rxf4 fxe5 27. dxe5 Rxf4 28. Rxf4 Ra5) 26. Bc4 {[%emt 0:02:48]} Raa8 {[%emt 0:09:10]} 27. Bg3 {[%emt 0:01:08]} Ra5 {[%emt 0:05:27]} 28. Be1 {[%emt 0:00:30]} Raa8 {[%emt 0:00:03]} 29. Bg3 {[%emt 0:00:02]} Ra5 {[%emt 0:00:07]} 30. Be1 {[%emt 0:00:02]} Raa8 {[%emt 0:00:03]} 31. Bg3 {[%emt 0:09:00] Weighted Error Value: White=0.18 (very precise) /Black=0.16 (very precise) .  Mistake:       	White=3     	Black=1      Inaccurate:     	White=3     	Black=5      OK:         	White=10    	Black=6      Best:        	White=1     	Black=1} 1/2-1/2